[Event "*** Titled Tuesday Blitz"]
[Site "Chess.com"]
[Date "2019.12.03"]
[Round "2"]
[White "fish7728"]
[Black "GCamachoMartinez"]
[Result "1/2-1/2"]
[WhiteElo "2142"]
[BlackElo "2426"]
[TimeControl "180+2"]
[EndTime "13:23:03 PST"]
[Termination "Game drawn by agreement"]

1. d4 {[%clk 0:02:32.3]} 1... Nf6 {[%clk 0:03:00]} 2. c4 {[%clk 0:02:31.9]} 2...
g6 {[%clk 0:03:01.1]} 3. Nc3 {[%clk 0:02:20.1]} 3... d5 {[%clk 0:03:01.8]} 4. g3
{[%clk 0:02:19.1]} 4... Bg7 {[%clk 0:03:01.6]} 5. Bg2 {[%clk 0:02:14.2]} 5...
dxc4 {[%clk 0:02:51.7]} 6. Nf3 {[%clk 0:02:15.1]} 6... O-O {[%clk 0:02:52.2]} 7.
O-O {[%clk 0:01:59]} 7... c5 {[%clk 0:02:52.9]} 8. dxc5 {[%clk 0:01:56.5]} 8...
Qc7 {[%clk 0:02:53.3]} 9. Qa4 {[%clk 0:01:36.8]} 9... Nbd7 {[%clk 0:02:48.6]}
10. Qxc4 {[%clk 0:01:36.1]} 10... Qxc5 {[%clk 0:02:49.3]} 11. Qxc5 {[%clk
0:01:34.4]} 11... Nxc5 {[%clk 0:02:51.2]} 12. Rd1 {[%clk 0:01:33]} 12... Bg4
{[%clk 0:02:31.3]} 13. Ne5 {[%clk 0:01:25.4]} 13... Be6 {[%clk 0:02:29.6]} 14.
Be3 {[%clk 0:01:22.9]} 14... Rac8 {[%clk 0:02:26.2]} 15. Bxc5 {[%clk 0:01:16.9]}
15... Rxc5 {[%clk 0:02:27]} 16. Nd3 {[%clk 0:01:16.3]} 16... Rc7 {[%clk
0:02:27]} 17. Nb5 {[%clk 0:01:15.9]} 17... Rc2 {[%clk 0:02:24.4]} 18. Bxb7
{[%clk 0:01:13.4]} 18... Nd7 {[%clk 0:02:04.4]} 19. Bf3 {[%clk 0:01:02.1]} 19...
Ne5 {[%clk 0:01:50.1]} 20. Nxe5 {[%clk 0:00:59.5]} 20... Bxe5 {[%clk 0:01:52]}
21. Nd4 {[%clk 0:00:59.1]} 21... Bxd4 {[%clk 0:01:51.9]} 22. Rxd4 {[%clk
0:00:59.8]} 22... Rxb2 {[%clk 0:01:53.8]} 23. Ra4 {[%clk 0:00:57.3]} 23... Rfb8
{[%clk 0:01:40.8]} 24. Rxa7 {[%clk 0:00:57.3]} 24... Bh3 {[%clk 0:01:41.7]} 25.
Rc7 {[%clk 0:00:45.5]} 25... Rxa2 {[%clk 0:01:40.6]} 26. Rcc1 {[%clk 0:00:31.3]}
26... Rab2 {[%clk 0:01:36.7]} 27. Rd1 {[%clk 0:00:27]} 27... e5 {[%clk
0:01:32.2]} 28. Bg2 {[%clk 0:00:23.1]} 28... Bxg2 {[%clk 0:01:32.2]} 29. Kxg2
{[%clk 0:00:23.5]} 29... Rxe2 {[%clk 0:01:34.1]} 30. Re1 {[%clk 0:00:23.4]}
30... Rbb2 {[%clk 0:01:33.9]} 31. Rxe2 {[%clk 0:00:23.3]} 31... Rxe2 {[%clk
0:01:35.8]} 32. Kf3 {[%clk 0:00:24]} 32... Rb2 {[%clk 0:01:35.9]} 33. Ra5 {[%clk
0:00:22.2]} 33... e4+ {[%clk 0:01:26.4]} 34. Ke3 {[%clk 0:00:20.9]} 34... Kg7
{[%clk 0:01:27]} 35. Kxe4 {[%clk 0:00:19.8]} 35... Rxf2 {[%clk 0:01:26.8]} 36.
h4 {[%clk 0:00:20.8]} 36... h5 {[%clk 0:01:26.6]} 37. Ra3 {[%clk 0:00:20.9]}
37... f6 {[%clk 0:01:26.3]} 38. Ra7+ {[%clk 0:00:20.9]} 38... Kh6 {[%clk
0:01:27.1]} 39. Ra6 {[%clk 0:00:21.7]} 39... g5 {[%clk 0:01:27.2]} 40. hxg5+
{[%clk 0:00:21.2]} 40... Kxg5 {[%clk 0:01:28.4]} 41. Ke3 {[%clk 0:00:20.6]}
41... Rf1 {[%clk 0:01:28.3]} 42. Ra4 {[%clk 0:00:18.9]} 42... f5 {[%clk
0:01:24.1]} 43. Ra5 {[%clk 0:00:18.8]} 43... Kg4 {[%clk 0:01:23.8]} 44. Ke2
{[%clk 0:00:18.9]} 44... Rb1 {[%clk 0:01:23.2]} 45. Ra3 {[%clk 0:00:17.5]} 45...
Rb2+ {[%clk 0:00:58.5]} 46. Kf1 {[%clk 0:00:16.5]} 46... Kh3 {[%clk 0:01:00.4]}
47. Rc3 {[%clk 0:00:14]} 47... Kh2 {[%clk 0:00:55.8]} 48. Rf3 {[%clk 0:00:10]}
48... Rb5 {[%clk 0:00:46.5]} 49. Kf2 {[%clk 0:00:10.4]} 49... Kh3 {[%clk
0:00:46.8]} 50. Kf1 {[%clk 0:00:07.2]} 50... Kg4 {[%clk 0:00:46.8]} 51. Ra3
{[%clk 0:00:06.6]} 51... Kh3 {[%clk 0:00:44.8]} 52. Kf2 {[%clk 0:00:06.4]} 52...
Rb2+ {[%clk 0:00:38.7]} 53. Kf3 {[%clk 0:00:07.2]} 53... Rg2 {[%clk 0:00:38.5]}
54. Kf4 {[%clk 0:00:08.2]} 54... Rf2+ {[%clk 0:00:37.9]} 55. Kg5 {[%clk
0:00:09.1]} 55... f4 {[%clk 0:00:32.1]} 56. gxf4+ {[%clk 0:00:05.7]} 56... Kg2
{[%clk 0:00:28.2]} 57. f5 {[%clk 0:00:06.1]} 57... h4 {[%clk 0:00:28.7]} 58.
Kxh4 {[%clk 0:00:06.2]} 58... Rxf5 {[%clk 0:00:29.5]} 59. Ra2+ {[%clk
0:00:07.3]} 59... Kf3 {[%clk 0:00:29.9]} 60. Ra3+ {[%clk 0:00:08.1]} 1/2-1/2

[Event "*** Titled Tuesday Blitz"]
[Site "Chess.com"]
[Date "2019.12.03"]
[Round "2"]
[White "JosefineHeinemann"]
[Black "Perecke"]
[Result "0-1"]
[WhiteElo "2410"]
[BlackElo "2141"]
[TimeControl "180+2"]
[EndTime "13:23:21 PST"]
[Termination "Perecke won by resignation"]

1. e4 {[%clk 0:03:01.9]} 1... c5 {[%clk 0:03:00.4]} 2. Nf3 {[%clk 0:03:02.8]}
2... e6 {[%clk 0:02:57.6]} 3. d4 {[%clk 0:03:03.7]} 3... cxd4 {[%clk 0:02:59.5]}
4. Nxd4 {[%clk 0:03:05.3]} 4... Nc6 {[%clk 0:02:58.2]} 5. Nc3 {[%clk 0:03:05.6]}
5... Qc7 {[%clk 0:02:57.9]} 6. Be3 {[%clk 0:03:01.7]} 6... a6 {[%clk 0:02:56]}
7. Qf3 {[%clk 0:02:56.3]} 7... Nf6 {[%clk 0:02:51.3]} 8. O-O-O {[%clk 0:02:57]}
8... Bb4 {[%clk 0:02:33.3]} 9. Nxc6 {[%clk 0:02:55.2]} 9... bxc6 {[%clk
0:02:26.7]} 10. Bd4 {[%clk 0:02:56.2]} 10... Be7 {[%clk 0:01:48.9]} 11. e5
{[%clk 0:02:43.9]} 11... Nd5 {[%clk 0:01:20.7]} 12. Ne4 {[%clk 0:02:35]} 12...
c5 {[%clk 0:01:16.3]} 13. Nd6+ {[%clk 0:02:31]} 13... Bxd6 {[%clk 0:01:10]} 14.
exd6 {[%clk 0:02:32.9]} 14... Qxd6 {[%clk 0:01:11.1]} 15. Bxg7 {[%clk 0:02:33]}
15... Rg8 {[%clk 0:01:11.7]} 16. Bh6 {[%clk 0:02:28.6]} 16... Qc6 {[%clk
0:00:37.2]} 17. a3 {[%clk 0:02:17.4]} 17... Bb7 {[%clk 0:00:38]} 18. Bd3 {[%clk
0:02:09.5]} 18... f5 {[%clk 0:00:36.7]} 19. Qh5+ {[%clk 0:02:09.5]} 19... Rg6
{[%clk 0:00:33.8]} 20. Rhe1 {[%clk 0:02:10.7]} 20... O-O-O {[%clk 0:00:32.6]}
21. g3 {[%clk 0:02:10.6]} 21... Nf6 {[%clk 0:00:25.7]} 22. Qh4 {[%clk
0:02:03.9]} 22... Ne4 {[%clk 0:00:19]} 23. Be3 {[%clk 0:01:57.2]} 23... h6
{[%clk 0:00:12.8]} 24. Qe7 {[%clk 0:01:47.9]} 24... d5 {[%clk 0:00:13]} 25. Qh7
{[%clk 0:01:46.5]} 25... Rdg8 {[%clk 0:00:13.2]} 26. Bxe4 {[%clk 0:01:46.9]}
26... fxe4 {[%clk 0:00:13.7]} 27. Bxh6 {[%clk 0:01:47.3]} 27... Qd7 {[%clk
0:00:08.2]} 28. Qxd7+ {[%clk 0:01:47.4]} 28... Kxd7 {[%clk 0:00:10.1]} 29. Bf4
{[%clk 0:01:48.8]} 29... Rh8 {[%clk 0:00:09.7]} 30. h4 {[%clk 0:01:49.8]} 30...
Rh5 {[%clk 0:00:09.7]} 31. Rd2 {[%clk 0:01:48.4]} 31... e5 {[%clk 0:00:10.3]}
32. Bg5 {[%clk 0:01:49.7]} 32... Ke6 {[%clk 0:00:10.3]} 33. Re3 {[%clk
0:01:47.9]} 33... d4 {[%clk 0:00:11.2]} 34. Rb3 {[%clk 0:01:48.8]} 34... Rg7
{[%clk 0:00:09]} 35. Rb6+ {[%clk 0:01:49.4]} 35... Kd5 {[%clk 0:00:08.5]} 36. b3
{[%clk 0:01:49.1]} 36... Bc6 {[%clk 0:00:08]} 37. c4+ {[%clk 0:01:48.7]} 37...
Kd6 {[%clk 0:00:09]} 38. Rxa6 {[%clk 0:01:50]} 38... Rb7 {[%clk 0:00:09.5]} 39.
Kb2 {[%clk 0:01:48.8]} 39... Rh8 {[%clk 0:00:09.6]} 40. Re2 {[%clk 0:01:40.8]}
40... Rhb8 {[%clk 0:00:09.3]} 41. b4 {[%clk 0:01:39.2]} 41... cxb4 {[%clk
0:00:08.3]} 42. a4 {[%clk 0:01:40.9]} 42... Rb6 {[%clk 0:00:05.7]} 43. Rxb6
{[%clk 0:01:38.6]} 43... Rxb6 {[%clk 0:00:07.6]} 44. a5 {[%clk 0:01:38.1]} 44...
Ra6 {[%clk 0:00:08.1]} 45. Bd8 {[%clk 0:01:39.2]} 45... Kc5 {[%clk 0:00:07]} 46.
Bb6+ {[%clk 0:01:40]} 46... Kxc4 {[%clk 0:00:08]} 47. h5 {[%clk 0:01:41.5]}
47... d3 {[%clk 0:00:08.8]} 48. Rd2 {[%clk 0:01:41.6]} 48... Ra8 {[%clk
0:00:07.8]} 49. g4 {[%clk 0:01:40.1]} 49... Rg8 {[%clk 0:00:08.6]} 50. h6 {[%clk
0:01:39.6]} 50... Rxg4 {[%clk 0:00:09.6]} 51. Bd8 {[%clk 0:01:40.6]} 51... Rg6
{[%clk 0:00:08.7]} 52. a6 {[%clk 0:01:35.5]} 52... Rxh6 {[%clk 0:00:09.5]} 53.
a7 {[%clk 0:01:37.2]} 53... Bb7 {[%clk 0:00:09.9]} 54. Rd1 {[%clk 0:01:37.1]}
54... Ra6 {[%clk 0:00:10.7]} 55. Rc1+ {[%clk 0:01:38.5]} 55... Kd5 {[%clk
0:00:08.9]} 56. Rc7 {[%clk 0:01:36.8]} 56... Rxa7 {[%clk 0:00:09.4]} 57. Rd7+
{[%clk 0:01:38.1]} 57... Ke6 {[%clk 0:00:08.7]} 58. Re7+ {[%clk 0:01:39.3]}
58... Kd6 {[%clk 0:00:09]} 59. Rh7 {[%clk 0:01:36.2]} 59... b3 {[%clk
0:00:10.1]} 60. Bc7+ {[%clk 0:01:37]} 60... Ke6 {[%clk 0:00:07.5]} 61. Kxb3
{[%clk 0:01:32.7]} 61... Bd5+ {[%clk 0:00:08.4]} 62. Kc3 {[%clk 0:01:34]} 62...
Ra3+ {[%clk 0:00:08.8]} 63. Kb4 {[%clk 0:01:35]} 63... Rb3+ {[%clk 0:00:09.3]}
64. Ka4 {[%clk 0:01:35.7]} 64... d2 {[%clk 0:00:09.3]} 65. Rh1 {[%clk
0:01:32.9]} 65... Rc3 {[%clk 0:00:09.9]} 66. Rd1 {[%clk 0:01:31.7]} 66... Rxc7
{[%clk 0:00:10.1]} 67. Rxd2 {[%clk 0:01:31.9]} 67... Rc3 {[%clk 0:00:11.1]} 68.
Kb4 {[%clk 0:01:33.1]} 68... Rf3 {[%clk 0:00:12.2]} 69. Kc5 {[%clk 0:01:33.7]}
69... Rc3+ {[%clk 0:00:10.4]} 70. Kb4 {[%clk 0:01:34.2]} 70... e3 {[%clk
0:00:10.7]} 71. fxe3 {[%clk 0:01:32.7]} 71... Rxe3 {[%clk 0:00:11.7]} 72. Kc5
{[%clk 0:01:34.4]} 72... Rc3+ {[%clk 0:00:13]} 73. Kb4 {[%clk 0:01:35.7]} 73...
Rc4+ {[%clk 0:00:14.6]} 74. Kb5 {[%clk 0:01:36.9]} 74... e4 {[%clk 0:00:16.4]}
75. Re2 {[%clk 0:01:34.4]} 75... Ke5 {[%clk 0:00:17.7]} 76. Re1 {[%clk
0:01:35.2]} 76... Rc3 {[%clk 0:00:18.4]} 77. Kb4 {[%clk 0:01:35.3]} 77... Kd4
{[%clk 0:00:19.3]} 78. Rd1+ {[%clk 0:01:35.9]} 78... Rd3 {[%clk 0:00:20.8]} 79.
Re1 {[%clk 0:01:37.4]} 79... e3 {[%clk 0:00:22.1]} 80. Kb5 {[%clk 0:01:38.7]}
80... Rd2 {[%clk 0:00:22.9]} 81. Kb4 {[%clk 0:01:39.9]} 81... e2 {[%clk
0:00:24.3]} 82. Ka3 {[%clk 0:01:39.3]} 82... Kd3 {[%clk 0:00:25.6]} 83. Kb4
{[%clk 0:01:39.3]} 83... Rd1 {[%clk 0:00:26.7]} 0-1

[Event "*** Titled Tuesday Blitz"]
[Site "Chess.com"]
[Date "2019.12.03"]
[Round "2"]
[White "Kimster98"]
[Black "allvim"]
[Result "1-0"]
[WhiteElo "2568"]
[BlackElo "2202"]
[TimeControl "180+2"]
[EndTime "13:23:27 PST"]
[Termination "Kimster98 won by resignation"]

1. Nf3 {[%clk 0:03:01.9]} 1... Nf6 {[%clk 0:02:58.5]} 2. c4 {[%clk 0:03:02.2]}
2... c5 {[%clk 0:02:58.9]} 3. Nc3 {[%clk 0:03:02.6]} 3... Nc6 {[%clk 0:02:58.7]}
4. g3 {[%clk 0:03:01.8]} 4... g6 {[%clk 0:02:59.3]} 5. d4 {[%clk 0:03:01.9]}
5... cxd4 {[%clk 0:02:58.5]} 6. Nxd4 {[%clk 0:03:03.8]} 6... Nxd4 {[%clk
0:02:59.1]} 7. Qxd4 {[%clk 0:03:05.7]} 7... Bg7 {[%clk 0:03:00.4]} 8. Bg2 {[%clk
0:03:07.3]} 8... O-O {[%clk 0:03:00.6]} 9. O-O {[%clk 0:03:08.5]} 9... d6 {[%clk
0:03:01.4]} 10. Qd3 {[%clk 0:03:08.9]} 10... Rb8 {[%clk 0:02:55.8]} 11. Be3
{[%clk 0:03:05.7]} 11... b6 {[%clk 0:02:51.3]} 12. Bd4 {[%clk 0:02:59.5]} 12...
Bb7 {[%clk 0:02:46.4]} 13. b3 {[%clk 0:02:57.1]} 13... Bxg2 {[%clk 0:02:31.9]}
14. Kxg2 {[%clk 0:02:59]} 14... Nd7 {[%clk 0:02:32.9]} 15. Bxg7 {[%clk
0:02:54.4]} 15... Kxg7 {[%clk 0:02:33.2]} 16. Qd4+ {[%clk 0:02:56]} 16... Kg8
{[%clk 0:02:33]} 17. h4 {[%clk 0:02:56.2]} 17... h5 {[%clk 0:02:32.4]} 18. Rad1
{[%clk 0:02:51.7]} 18... Nf6 {[%clk 0:02:17.4]} 19. e4 {[%clk 0:02:50.5]} 19...
Qc7 {[%clk 0:02:17.2]} 20. Rfe1 {[%clk 0:02:48.5]} 20... Rfd8 {[%clk 0:01:58.6]}
21. a4 {[%clk 0:02:39.5]} 21... Qc5 {[%clk 0:01:54.8]} 22. Nd5 {[%clk
0:02:31.6]} 22... Nxd5 {[%clk 0:01:52.3]} 23. exd5 {[%clk 0:02:32]} 23... Qxd4
{[%clk 0:01:48]} 24. Rxd4 {[%clk 0:02:33.9]} 24... Rd7 {[%clk 0:01:47.6]} 25. f4
{[%clk 0:02:23.1]} 25... a6 {[%clk 0:01:46.3]} 26. f5 {[%clk 0:02:17.8]} 26...
b5 {[%clk 0:01:40]} 27. cxb5 {[%clk 0:02:18.1]} 27... axb5 {[%clk 0:01:38.1]}
28. fxg6 {[%clk 0:02:19.2]} 28... fxg6 {[%clk 0:01:37.3]} 29. a5 {[%clk
0:02:17.6]} 29... b4 {[%clk 0:01:34.7]} 30. Re6 {[%clk 0:02:01.9]} 30... Kf7
{[%clk 0:01:28]} 31. g4 {[%clk 0:01:56.8]} 31... Rc7 {[%clk 0:00:56.6]} 32. gxh5
{[%clk 0:01:38.9]} 32... Rc2+ {[%clk 0:00:55.3]} 33. Kf3 {[%clk 0:01:32.2]}
33... gxh5 {[%clk 0:00:55]} 34. Rf4+ {[%clk 0:01:30.4]} 34... Ke8 {[%clk
0:00:52.8]} 35. Rf5 {[%clk 0:01:26.5]} 35... Rc3+ {[%clk 0:00:51.1]} 36. Re3
{[%clk 0:01:26.7]} 36... Rxe3+ {[%clk 0:00:47.6]} 37. Kxe3 {[%clk 0:01:28.6]}
37... Rb5 {[%clk 0:00:48.4]} 38. Rxh5 {[%clk 0:01:22.9]} 38... Rxa5 {[%clk
0:00:47.9]} 39. Kd4 {[%clk 0:01:12.1]} 39... Rc5 {[%clk 0:00:46.1]} 40. Rh8+
{[%clk 0:01:10.4]} 40... Kd7 {[%clk 0:00:45.4]} 41. Rb8 {[%clk 0:01:11.5]} 41...
Rc1 {[%clk 0:00:41.1]} 42. Rxb4 {[%clk 0:01:11.5]} 42... Rh1 {[%clk 0:00:41.3]}
43. Ke3 {[%clk 0:01:07.5]} 43... Kc7 {[%clk 0:00:29.6]} 44. Re4 {[%clk
0:01:00.6]} 44... Rh3+ {[%clk 0:00:27.7]} 45. Kd4 {[%clk 0:00:58]} 45... Rxb3
{[%clk 0:00:26.2]} 46. Rxe7+ {[%clk 0:00:58.1]} 46... Kd8 {[%clk 0:00:27.4]} 47.
Re4 {[%clk 0:00:39.4]} 47... Rh3 {[%clk 0:00:22.7]} 48. Rf4 {[%clk 0:00:30.5]}
48... Ke7 {[%clk 0:00:22.1]} 49. Ke4 {[%clk 0:00:32]} 49... Rh1 {[%clk
0:00:21.7]} 50. Kf5 {[%clk 0:00:17.4]} 50... Kf7 {[%clk 0:00:21.1]} 51. Kg5+
{[%clk 0:00:17.5]} 51... Kg7 {[%clk 0:00:21.4]} 52. Kf5 {[%clk 0:00:14.4]} 52...
Kf7 {[%clk 0:00:20.6]} 53. Kg5+ {[%clk 0:00:15.7]} 53... Kg7 {[%clk 0:00:21.1]}
54. h5 {[%clk 0:00:17.3]} 54... Rg1+ {[%clk 0:00:19.8]} 55. Kf5 {[%clk
0:00:17.8]} 55... Rd1 {[%clk 0:00:19.6]} 56. Ke6 {[%clk 0:00:18.1]} 56... Rh1
{[%clk 0:00:18.1]} 57. Rf5 {[%clk 0:00:18.1]} 57... Ra1 {[%clk 0:00:15.5]} 58.
Kxd6 {[%clk 0:00:18.2]} 58... Ra6+ {[%clk 0:00:15.7]} 59. Ke7 {[%clk 0:00:19.5]}
59... Ra7+ {[%clk 0:00:15.6]} 60. Ke6 {[%clk 0:00:20.9]} 60... Ra6+ {[%clk
0:00:16.1]} 61. d6 {[%clk 0:00:22.4]} 61... Ra5 {[%clk 0:00:16.9]} 62. Rxa5
{[%clk 0:00:23.1]} 1-0

[Event "*** Titled Tuesday Blitz"]
[Site "Chess.com"]
[Date "2019.12.03"]
[Round "2"]
[White "SmirnovAlexandrA"]
[Black "Andrii_Prydun"]
[Result "1-0"]
[WhiteElo "2428"]
[BlackElo "2390"]
[TimeControl "180+2"]
[EndTime "13:23:30 PST"]
[Termination "SmirnovAlexandrA won by resignation"]

1. e4 {[%clk 0:03:01.9]} 1... e6 {[%clk 0:03:00.6]} 2. d4 {[%clk 0:03:02.2]}
2... d5 {[%clk 0:03:01.9]} 3. Nc3 {[%clk 0:03:03.4]} 3... Bb4 {[%clk 0:03:03.2]}
4. e5 {[%clk 0:03:03.6]} 4... Ne7 {[%clk 0:03:04.5]} 5. a3 {[%clk 0:02:56.2]}
5... Bxc3+ {[%clk 0:03:04.1]} 6. bxc3 {[%clk 0:02:58.1]} 6... c5 {[%clk
0:03:05.6]} 7. Qg4 {[%clk 0:02:58.4]} 7... O-O {[%clk 0:03:06.2]} 8. Bd3 {[%clk
0:02:55.2]} 8... f5 {[%clk 0:03:06.6]} 9. exf6 {[%clk 0:02:54.9]} 9... Rxf6
{[%clk 0:03:08.1]} 10. Qh5 {[%clk 0:02:49.2]} 10... g6 {[%clk 0:03:03.9]} 11.
Qd1 {[%clk 0:02:48.6]} 11... Nbc6 {[%clk 0:02:59.4]} 12. Nf3 {[%clk 0:02:48.2]}
12... Bd7 {[%clk 0:02:52]} 13. Bg5 {[%clk 0:02:47.9]} 13... Rf7 {[%clk
0:02:52.5]} 14. O-O {[%clk 0:02:47.9]} 14... Qa5 {[%clk 0:02:53.4]} 15. Qd2
{[%clk 0:02:46.4]} 15... Raf8 {[%clk 0:02:53.1]} 16. Bh6 {[%clk 0:02:26.8]}
16... Re8 {[%clk 0:02:53.4]} 17. Rfe1 {[%clk 0:02:23.7]} 17... c4 {[%clk
0:02:46]} 18. Bf1 {[%clk 0:02:23.2]} 18... Nf5 {[%clk 0:02:46.8]} 19. Bf4 {[%clk
0:02:16.9]} 19... Ref8 {[%clk 0:02:47]} 20. Ne5 {[%clk 0:02:17.5]} 20... Nxe5
{[%clk 0:02:42.6]} 21. Bxe5 {[%clk 0:02:19.4]} 21... Ne7 {[%clk 0:02:35.3]} 22.
f3 {[%clk 0:02:15.6]} 22... Nc8 {[%clk 0:02:35.8]} 23. Reb1 {[%clk 0:02:10.2]}
23... Nb6 {[%clk 0:02:35.3]} 24. Bc7 {[%clk 0:02:06]} 24... Rc8 {[%clk
0:02:34.7]} 25. Bxb6 {[%clk 0:02:06.1]} 25... axb6 {[%clk 0:02:36.3]} 26. Rb4
{[%clk 0:02:02]} 26... b5 {[%clk 0:02:36.3]} 27. Qe3 {[%clk 0:01:51.6]} 27...
Qc7 {[%clk 0:02:34.6]} 28. g3 {[%clk 0:01:48.8]} 28... Ra8 {[%clk 0:02:33]} 29.
f4 {[%clk 0:01:47.2]} 29... Ra6 {[%clk 0:02:32.6]} 30. Bh3 {[%clk 0:01:46.8]}
30... Rf8 {[%clk 0:02:32.4]} 31. Rbb1 {[%clk 0:01:42.5]} 31... Rfa8 {[%clk
0:02:32.9]} 32. Re1 {[%clk 0:01:43.4]} 32... Qd6 {[%clk 0:02:32.1]} 33. Kf2
{[%clk 0:01:12.9]} 33... Rxa3 {[%clk 0:02:30.4]} 34. Rxa3 {[%clk 0:01:08.7]}
34... Rxa3 {[%clk 0:02:32.3]} 35. Rb1 {[%clk 0:00:55.4]} 35... Ra2 {[%clk
0:02:23.5]} 36. Qe2 {[%clk 0:00:49.3]} 36... Kf7 {[%clk 0:02:17.4]} 37. Ke1
{[%clk 0:00:49.7]} 37... Qa3 {[%clk 0:02:16.3]} 38. Kd2 {[%clk 0:00:47.1]} 38...
Qa5 {[%clk 0:01:39.4]} 39. Re1 {[%clk 0:00:43.1]} 39... Ra3 {[%clk 0:01:29.1]}
40. Bxe6+ {[%clk 0:00:42.5]} 40... Kf8 {[%clk 0:01:30.4]} 41. Qf3 {[%clk
0:00:36.1]} 41... Bxe6 {[%clk 0:01:09.4]} 42. Rxe6 {[%clk 0:00:38]} 42... b4
{[%clk 0:01:10.6]} 43. f5 {[%clk 0:00:24.1]} 43... Rxc3 {[%clk 0:01:04.2]} 44.
Qf4 {[%clk 0:00:21.7]} 44... Rxc2+ {[%clk 0:00:13.9]} 45. Kxc2 {[%clk
0:00:21.8]} 45... b3+ {[%clk 0:00:11.4]} 46. Kd1 {[%clk 0:00:21.4]} 46... Qa1+
{[%clk 0:00:11.6]} 47. Ke2 {[%clk 0:00:21.1]} 47... Qb2+ {[%clk 0:00:11.2]} 48.
Kf1 {[%clk 0:00:18.7]} 48... Qb1+ {[%clk 0:00:11.9]} 49. Kg2 {[%clk 0:00:16.5]}
49... Qc2+ {[%clk 0:00:11.7]} 50. Kg1 {[%clk 0:00:09.7]} 50... Qb1+ {[%clk
0:00:12.4]} 51. Kf2 {[%clk 0:00:10.2]} 51... Qxf5 {[%clk 0:00:12.3]} 52. Qxf5+
{[%clk 0:00:10.8]} 52... gxf5 {[%clk 0:00:13.2]} 53. Rb6 {[%clk 0:00:11.6]}
53... Ke7 {[%clk 0:00:06.2]} 54. Ke3 {[%clk 0:00:12.5]} 54... Kd7 {[%clk
0:00:05.6]} 55. Rxb7+ {[%clk 0:00:10.5]} 55... Kc6 {[%clk 0:00:06.6]} 56. Rb4
{[%clk 0:00:11.4]} 56... h5 {[%clk 0:00:05.7]} 57. Kd2 {[%clk 0:00:11.5]} 57...
h4 {[%clk 0:00:05.6]} 58. Kc3 {[%clk 0:00:11]} 58... hxg3 {[%clk 0:00:05.9]} 59.
hxg3 {[%clk 0:00:12.9]} 59... Kd6 {[%clk 0:00:07.1]} 60. Rb6+ {[%clk 0:00:13.6]}
60... Ke7 {[%clk 0:00:08]} 61. Rh6 {[%clk 0:00:13.2]} 61... Kf7 {[%clk
0:00:08.8]} 62. Rd6 {[%clk 0:00:13.7]} 62... Kg7 {[%clk 0:00:08.4]} 63. Rxd5
{[%clk 0:00:14.6]} 63... Kf6 {[%clk 0:00:09.5]} 1-0